bitfinex/quotes_SOLUSD_20220210
["timestamp","ask_amount","ask_price","bid_price","bid_amount"]
[1644458651418,52.29596723,113.25,113.2,35.7963]
[1644458651621,52.29596723,113.25,113.2,22.5443]
[1644458653420,65.54846723,113.25,113.2,22.5443]
[1644458654121,65.54846723,113.25,113.19,4.415]
[1644458654420,65.54846723,113.25,113.14,45.44102281]
[1644458654421,13.2565,113.22,113.17,0.024]
[1644458654619,4.417,113.21,113.16,17.6965]
[1644458654823,4.417,113.21,113.17,0.024]
[1644458655421,48.8630832,113.21,113.17,0.024]
[1644458656622,13.2549,113.23,113.17,13.2795]
[1644458656825,13.2549,113.23,113.18,0.024]
[1644458657623,46.3216973,113.22,113.18,0.024]
[1644458657825,46.3216973,113.22,113.17,37.2218]
[1644458658825,59.5776973,113.22,113.17,37.2218]
[1644458660048,59.5776973,113.22,113.17,23.9663]
[1644458660248,59.5776973,113.22,113.17,0.024]
[1644458661051,13.2583,113.2,113.17,0.024]
[1644458661251,61.16182598,113.2,113.16,4.44]
[1644458661453,71.76982598,113.2,113.16,4.44]
[1644458661751,4.417,113.19,113.16,0.024]
[1644458661952,4.417,113.19,113.14,23.9989]
[1644458662353,44.18550777,113.18,113.14,23.9989]
[1644458663756,57.44610777,113.18,113.14,23.9989]
[1644458664564,44.18550777,113.18,113.14,23.9989]
[1644458665761,13.2597,113.19,113.14,23.9989]
[1644458666862,54.86730685,113.19,113.14,23.9989]
[1644458667663,54.86730685,113.19,113.15,36.43761722]
[1644458668068,54.86730685,113.19,113.15,36.46161722]
[1644458668966,13.2597,113.19,113.15,36.46161722]
[1644458671869,13.2597,113.19,113.15,0.024]
[1644458672069,13.2597,113.19,113.14,23.9989]
[1644458672270,26.6107,113.19,113.14,23.9989]
[1644458673071,26.6107,113.19,113.14,70.95920432]
[1644458673470,13.2597,113.19,113.14,70.95920432]
[1644458675780,13.2597,113.19,113.14,84.21830432]
[1644458678479,13.2597,113.19,113.14,70.95920432]
[1644458679779,17.6777,113.19,113.14,70.95920432]
[1644458680078,38.28693077,113.18,113.14,70.95920432]
[1644458680280,63.31903077,113.18,113.14,0.024]
[1644458680679,63.31903077,113.18,113.1,27.4281]
[1644458680680,27.435,113.17,113.11,0.024]
[1644458681281,34.89893582,113.16,113.11,0.024]
[1644458681480,47.99897078,113.14,113.11,0.024]
[1644458681680,4.418,113.13,113.11,0.024]
[1644458681880,40.18334283,113.12,113.09,0.024]
[1644458682081,40.18334283,113.12,113.08,114.324]
[1644458683682,53.45094283,113.12,113.08,114.324]
[1644458688108,13.2676,113.12,113.09,39.77366332]
[1644458688309,13.2676,113.12,113.09,39.79766332]
[1644458688507,13.2676,113.12,113.1,3.03219997]
[1644458688709,13.2676,113.12,113.1,6.06439993]
[1644458690910,13.2676,113.12,113.1,3.03219997]
[1644458691111,13.2676,113.12,113.09,39.79766332]
[1644458691315,13.2676,113.12,113.09,0.024]
[1644458691511,13.2676,113.12,113.08,114.324]
[1644458692309,13.2676,113.12,113.08,149.17653759]
[1644458694116,36.55341242,113.11,113.08,114.324]
[1644458694714,49.82201242,113.11,113.08,114.324]
[1644458694915,59.68101242,113.11,113.08,114.324]
[1644458697119,49.82201242,113.11,113.08,114.324]
[1644458699121,49.82201242,113.11,113.08,0.024]
[1644458700318,13.2686,113.11,113.08,0.024]
[1644458700520,24.8429,113.14,113.09,6.06439993]
[1644458700719,24.8429,113.14,113.1,0.024]
[1644458700919,44.2216,113.16,113.1,0.024]
[1644458701120,38.6392287,113.15,113.1,0.024]
[1644458701320,43.0572287,113.15,113.1,0.024]
[1644458701721,13.2655,113.14,113.1,0.024]
[1644458701925,43.75725291,113.13,113.1,0.024]
[1644458704825,57.02325291,113.13,113.1,0.024]
[1644458708529,57.02325291,113.13,113.08,114.324]
[1644458708934,61.44325291,113.13,113.08,114.324]
[1644458709130,61.44325291,113.13,113.08,127.5904]
[1644458709332,61.44325291,113.13,113.08,173.84393933]
[1644458712032,61.44325291,113.13,113.08,127.5904]
[1644458712435,71.29625291,113.13,113.08,114.324]
[1644458712636,71.29625291,113.13,113.08,0.024]
[1644458714539,72.55045295,113.13,113.06,0.024]
[1644458714738,71.29625291,113.13,113.06,0.024]
[1644458714939,61.44325291,113.13,113.06,0.024]
[1644458715142,24.8169,113.12,113.06,0.024]
[1644458715347,56.01364065,113.11,113.06,37.44257417]
[1644458715540,56.01364065,113.11,113.07,0.024]
[1644458716641,17.6904,113.11,113.07,0.024]
[1644458716840,13.2694,113.11,113.07,0.024]
[1644458719360,36.33795256,113.1,113.07,0.024]
[1644458719557,36.33795256,113.1,113.05,0.024]
[1644458719558,59.02615256,113.1,113.05,0.024]
[1644458719758,59.02615256,113.1,113.06,0.024]
[1644458719957,4.422,113.09,113.05,0.024]
[1644458720160,29.2834,113.09,113.05,0.024]
[1644458720357,40.42496308,113.08,113.05,0.024]
[1644458720560,29.2834,113.09,113.05,0.024]
[1644458721662,66.08713272,113.09,113.05,0.024]
[1644458721861,13.2737,113.08,113.05,0.024]
[1644458723363,13.2749,113.06,113.05,0.024]
[1644458723561,13.2749,113.06,113.03,114.324]
[1644458723764,13.2749,113.06,113.04,6.08839993]
[1644458723963,13.2749,113.06,113.04,6.06439993]
[1644458724160,13.2749,113.06,113.04,3.03219997]
[1644458725163,13.2749,113.06,113.05,3.03219996]
[1644458727063,13.2749,113.06,113.05,46.02565841]
[1644458727868,13.2749,113.06,113.05,3.03219996]
[1644458728765,13.2749,113.06,113.04,3.05619997]
[1644458729065,13.2749,113.06,113.04,3.03219997]
[1644458729265,13.2749,113.06,113.05,3.03219996]
[1644458729667,24.8614,113.09,113.05,3.03219996]
[1644458729867,44.2392,113.11,113.05,3.03219996]
[1644458730066,24.0491,113.13,113.06,0.024]
[1644458730265,4.421,113.12,113.06,24.1243]
[1644458730468,41.67886858,113.12,113.07,44.71954433]
[1644458730671,13.2687,113.11,113.08,0.024]
[1644458730868,4.421,113.12,113.09,6.06439993]
[1644458731068,4.42,113.14,113.09,6.06439993]
[1644458731266,4.42,113.14,113.1,0.024]
[1644458731669,13.2668,113.13,113.1,0.024]
[1644458731868,58.64945627,113.13,113.08,23.6676]
[1644458732569,58.64945627,113.13,113.08,36.9343]
[1644458734072,58.64945627,113.13,113.08,23.6676]
[1644458735774,58.64945627,113.13,113.09,40.65440379]
[1644458735973,58.64945627,113.13,113.09,0.024]
[1644458736174,58.64945627,113.13,113.08,23.6676]
[1644458736974,58.64945627,113.13,113.08,65.94764204]
[1644458738376,58.64945627,113.13,113.08,23.6676]
[1644458738577,58.64945627,113.13,113.08,0.024]
[1644458738778,4.42,113.12,113.06,0.024]
[1644458738979,13.2707,113.11,113.06,0.024]
[1644458739179,36.6651,113.11,113.06,0.024]
[1644458739381,72.85224585,113.11,113.06,38.22493176]
[1644458739579,72.85224585,113.11,113.07,0.024]
[1644458740782,36.6651,113.11,113.07,0.024]
[1644458742581,44.71426944,113.1,113.07,0.024]
[1644458742780,57.98436944,113.1,113.07,0.024]
[1644458743584,13.2701,113.1,113.08,6.06439993]
[1644458745894,13.2701,113.1,113.08,3.03219996]
[1644458746091,13.2701,113.1,113.07,0.024]
[1644458747189,36.6625,113.11,113.08,6.06439993]
[1644458747389,4.421,113.15,113.08,6.06439993]
[1644458747591,4.421,113.15,113.09,0.024]
[1644458747791,29.002,113.16,113.09,0.024]
[1644458747991,29.002,113.16,113.11,41.50019911]
[1644458747992,72.56152931,113.16,113.11,41.50019911]
[1644458748192,68.14152931,113.16,113.11,41.50019911]
[1644458749197,81.40422931,113.16,113.11,41.50019911]
[1644458749794,13.2627,113.16,113.11,41.50019911]
[1644458749997,1.25420004,113.2,113.11,41.50019911]
[1644458750198,13.2602,113.19,113.13,13.2602]
[1644458750397,28.72750004,113.21,113.13,24.8002]
[1644458750597,1.25420004,113.21,113.14,4.418]
[1644458750799,49.29176966,113.23,113.15,37.33995414]
[1644458751302,48.03756962,113.23,113.15,37.33995414]
[1644458751498,61.29376962,113.23,113.15,50.84755414]
[1644458751696,56.87576962,113.23,113.15,50.59755414]
[1644458751897,4.417,113.22,113.15,50.59755414]
[1644458753711,4.417,113.22,113.15,63.30755414]
[1644458753916,17.6722,113.24,113.17,13.2546]
[1644458754110,4.417,113.24,113.17,24.0426]
[1644458754715,4.417,113.24,113.17,36.7526]
[1644458755013,0.03722696,113.25,113.19,35.95358388]
[1644458755213,0.03722696,113.25,113.2,13.2512]
[1644458755413,45.42810004,113.3,113.2,13.2512]
[1644458755414,0.03722696,113.26,113.2,17.6672]
[1644458755714,4.45222696,113.29,113.2,17.6672]
[1644458755913,0.03722696,113.25,113.21,12.46]
[1644458756113,0.03722696,113.28,113.22,4.415]
[1644458756314,44.55058494,113.29,113.23,55.19681218]
[1644458756519,0.03722696,113.27,113.23,55.19681218]
[1644458756714,0.03722696,113.28,113.23,55.19681218]
[1644458758119,4.414,113.27,113.23,55.19681218]
[1644458758319,4.414,113.27,113.23,42.73681218]
[1644458758619,4.414,113.27,113.21,12.46]
[1644458758823,0.03722696,113.26,113.21,12.46]
[1644458759027,4.415,113.25,113.18,12.46]
[1644458759424,34.23761669,113.24,113.18,51.39181463]
[1644458759721,4.416,113.23,113.18,51.39181463]
[1644458760123,4.416,113.24,113.18,51.39181463]
[1644458760323,0.03722696,113.25,113.18,51.39181463]
[1644458760524,4.45322696,113.26,113.18,60.05681463]
[1644458760820,0.03722696,113.25,113.18,60.05681463]
[1644458761022,52.46106285,113.28,113.19,4.415]
[1644458761223,0.03722696,113.25,113.19,37.9881]
[1644458761424,0.03722696,113.27,113.19,194.11075625]
[1644458761627,0.03722696,113.25,113.2,53.4348]
[1644458761823,0.03722696,113.26,113.21,12.46]
[1644458762026,0.03722696,113.31,113.21,12.46]
[1644458762228,4.414,113.3,113.22,80.20550118]
[1644458762425,4.45122696,113.3,113.23,12.46]
[1644458763228,17.70082696,113.3,113.23,12.46]
[1644458765028,4.45122696,113.3,113.23,12.46]
[1644458766129,4.45122696,113.3,113.23,16.874]
[1644458767231,4.45122696,113.3,113.23,12.46]
[1644458770132,4.45122696,113.3,113.23,25.7067]
[1644458770333,0.03722696,113.3,113.23,25.7067]
[1644458770531,4.45122696,113.32,113.24,4.414]
[1644458770736,0.03722696,113.29,113.26,37.89196469]
[1644458770932,4.413,113.34,113.27,18.52439993]
[1644458770933,0.03722696,113.31,113.27,18.52439993]
[1644458771132,24.7548,113.37,113.28,17.6539]
[1644458771133,0.03722696,113.33,113.28,17.6539]
[1644458771335,0.03722696,113.34,113.28,30.1139]
[1644458771532,0.03722696,113.36,113.28,25.7009]
[1644458771733,0.03722696,113.33,113.28,25.7009]
[1644458771934,0.03722696,113.36,113.28,25.7009]
[1644458772136,0.03722696,113.36,113.28,36.0329]
[1644458772734,0.03722696,113.38,113.28,36.0329]
[1644458772935,0.03722696,113.38,113.29,17.649]
[1644458773135,0.03722696,113.38,113.3,12.46]
[1644458773334,0.03722696,113.38,113.31,4.41]
[1644458773535,0.03722696,113.38,113.32,37.2810594]
[1644458773837,0.03722696,113.38,113.32,48.5790594]
[1644458774037,0.03722696,113.38,113.33,16.87]
[1644458774236,0.03722696,113.4,113.33,17.12]
[1644458774437,0.03722696,113.37,113.33,17.12]
[1644458774644,0.03722696,113.39,113.33,61.2267]
[1644458774840,0.03722696,113.42,113.34,6.0]
[1644458775140,0.03722696,113.38,113.36,58.14900589]
[1644458775337,0.03722696,113.41,113.37,18.52439993]
[1644458775536,4.409,113.47,113.37,81.79339993]
[1644458775737,4.407,113.51,113.39,0.30317351]
[1644458775938,4.407,113.52,113.42,0.31712232]
[1644458776140,4.406,113.54,113.43,16.866]
[1644458776338,4.406,113.54,113.44,39.86088911]
[1644458776538,4.406,113.54,113.45,12.77587661]
[1644458776738,4.405,113.55,113.46,34.45017507]
[1644458776940,4.405,113.55,113.47,12.46]
[1644458777141,4.404,113.57,113.47,12.46]
[1644458777339,4.404,113.57,113.47,14.59099935]
[1644458777538,4.404,113.57,113.48,1.88099935]
[1644458777738,1.47603462,113.59,113.49,12.76465954]
[1644458777739,4.404,113.58,113.49,12.76465954]
[1644458777939,4.404,113.58,113.5,34.32312324]
[1644458778140,4.404,113.58,113.51,12.46]
[1644458778343,4.404,113.58,113.52,36.7193307]
[1644458779141,4.404,113.58,113.49,2.18565889]
[1644458779342,4.404,113.58,113.47,4.402]
[1644458779542,4.404,113.58,113.47,12.46]
[1644458780143,39.44522941,113.57,113.48,44.44360564]
[1644458780346,47.40664929,113.55,113.48,44.44360564]
[1644458780743,4.404,113.54,113.48,44.44360564]
[1644458780942,37.70860177,113.53,113.48,44.44360564]
[1644458781344,4.405,113.58,113.48,44.44360564]
[1644458781843,13.2209,113.56,113.48,44.44360564]
[1644458782051,4.404,113.55,113.48,44.44360564]
[1644458782444,36.42481162,113.54,113.48,44.44360564]
[1644458782643,13.2209,113.56,113.48,44.44360564]
[1644458782644,37.05781805,113.52,113.48,44.44360564]
[1644458782843,37.05781805,113.52,113.47,12.46]
[1644458783246,37.05781805,113.52,113.45,12.46]
[1644458783445,4.405,113.51,113.45,12.46]
[1644458783845,34.45083342,113.5,113.46,35.37242676]
[1644458784044,13.2251,113.52,113.46,35.37242676]
[1644458784244,44.0774,113.56,113.46,35.37242676]
[1644458784245,4.405,113.55,113.46,35.37242676]
[1644458785044,47.31241404,113.55,113.46,35.37242676]
[1644458785744,13.2227,113.54,113.46,35.37242676]
[1644458785944,39.35608723,113.53,113.46,35.37242676]
[1644458787671,52.57928723,113.53,113.46,35.37242676]
[1644458788472,48.17428723,113.53,113.46,35.37242676]
[1644458788671,4.405,113.52,113.46,35.37242676]
[1644458788870,48.17428723,113.53,113.46,35.37242676]
[1644458789271,13.2232,113.53,113.46,35.37242676]
[1644458789470,4.405,113.55,113.46,47.83242676]
[1644458789670,17.6257,113.55,113.46,49.70213531]
[1644458790272,57.42620653,113.55,113.46,49.70213531]
[1644458790674,17.6257,113.55,113.46,49.70213531]
[1644458790871,16.6257,113.55,113.46,49.70213531]
[1644458791672,16.6257,113.55,113.46,49.95213531]
[1644458791873,13.2207,113.55,113.48,39.21061442]
[1644458794679,45.48499298,113.54,113.48,39.21061442]
[1644458795879,49.88899298,113.54,113.48,39.21061442]
[1644458796981,63.11049298,113.54,113.46,14.32970855]
[1644458797279,63.11049298,113.54,113.45,4.404]
[1644458797280,4.405,113.53,113.45,4.404]
[1644458797480,4.405,113.53,113.44,23.1212]
[1644458797681,4.405,113.53,113.42,30.088]
[1644458797886,44.11297227,113.52,113.43,35.69731569]
[1644458798083,40.36184929,113.5,113.43,35.69731569]
[1644458798282,4.406,113.49,113.43,35.69731569]
[1644458798486,13.225,113.51,113.43,40.10331569]
[1644458799285,52.59569921,113.51,113.43,40.10331569]
[1644458799486,52.59569921,113.51,113.43,54.43302424]
[1644458799686,13.225,113.51,113.43,54.43302424]
[1644458799885,13.2224,113.53,113.43,54.43302424]
[1644458800588,61.99893361,113.53,113.43,54.43302424]
[1644458801186,4.406,113.52,113.43,50.02702424]
[1644458801485,66.40493361,113.53,113.45,43.41417891]
[1644458801885,66.40493361,113.53,113.45,57.74388746]
[1644458802092,66.40493361,113.53,113.45,14.32970855]
[1644458802287,66.40493361,113.53,113.44,4.406]
[1644458802485,77.04693361,113.53,113.44,4.406]
[1644458803091,77.04693361,113.53,113.44,40.74586039]
[1644458803487,66.40493361,113.53,113.44,40.74586039]
[1644458803686,2.20638512,113.52,113.4,5.66142281]
[1644458803887,13.2294,113.48,113.4,16.865]
[1644458804088,4.407,113.47,113.4,12.46]
[1644458804289,4.407,113.47,113.39,4.406]
[1644458804589,4.408,113.49,113.4,3.12613136]
[1644458804800,35.72382448,113.48,113.42,39.8538917]
[1644458805593,48.95112448,113.48,113.42,39.8538917]
[1644458806192,13.2273,113.48,113.42,39.8538917]
[1644458807193,61.76499909,113.48,113.42,39.8538917]
[1644458808493,43.89505276,113.46,113.42,39.8538917]
[1644458808694,57.12455276,113.46,113.42,39.8538917]
[1644458809294,57.12455276,113.46,113.41,4.407]
[1644458809695,17.6378,113.45,113.41,4.407]
[1644458810298,46.70328871,113.44,113.41,4.407]
[1644458810498,58.80828871,113.44,113.38,91.31770945]
[1644458810697,58.80828871,113.44,113.38,42.79250945]
[1644458811699,72.04008871,113.44,113.38,42.79250945]
[1644458813101,59.93508871,113.44,113.38,42.79250945]
[1644458813906,13.2297,113.46,113.39,12.46]
[1644458814102,52.3766,113.49,113.39,16.868]
[1644458814301,52.3766,113.49,113.4,1.86970855]
[1644458814501,47.9686,113.49,113.4,14.32970855]
[1644458814701,36.13951124,113.48,113.41,42.9725186]
[1644458814902,36.13951124,113.48,113.41,44.84222715]
[1644458815101,49.36681124,113.48,113.41,42.9725186]
[1644458817303,49.36681124,113.48,113.41,55.4325186]
[1644458818705,49.36681124,113.48,113.41,68.6586186]
[1644458819302,49.36681124,113.48,113.41,25.6861]
[1644458819504,49.36681124,113.48,113.41,12.46]
[1644458820502,13.2297,113.46,113.39,35.7861]
[1644458820703,13.2297,113.46,113.37,12.46]
[1644458820906,4.408,113.45,113.36,36.3395]
[1644458821107,14.614,113.45,113.36,36.3395]
[1644458821303,10.206,113.45,113.37,4.408]
[1644458821505,43.12007984,113.44,113.37,34.71338043]
[1644458822105,13.2327,113.43,113.36,36.3395]
[1644458822308,13.2327,113.43,113.36,12.46]
[1644458822505,13.2327,113.43,113.35,4.408]
[1644458822506,15.43908512,113.43,113.35,4.408]
[1644458822705,4.409,113.42,113.32,12.46]
[1644458822908,13.825,113.42,113.32,12.46]
[1644458823104,36.86094927,113.41,113.33,46.80638462]
[1644458823304,43.04314016,113.39,113.33,46.80638462]
[1644458823708,56.28064016,113.39,113.33,46.80638462]
[1644458824709,43.04314016,113.39,113.33,61.91149317]
[1644458825508,43.04314016,113.39,113.33,66.32149317]
[1644458825707,43.04314016,113.39,113.33,61.91149317]
[1644458826310,17.6454,113.41,113.33,61.91149317]
[1644458826509,17.6454,113.41,113.33,74.37149317]
[1644458826809,13.2354,113.41,113.33,74.37149317]
[1644458827408,61.52962056,113.41,113.33,74.37149317]
[1644458827610,48.29422056,113.41,113.33,74.37149317]
[1644458827830,48.29422056,113.41,113.33,74.62149317]
[1644458828937,48.29422056,113.41,113.35,50.32909944]
[1644458829134,48.29422056,113.41,113.35,62.78909944]
[1644458831336,17.6432,113.43,113.35,62.78909944]
[1644458831641,17.6432,113.43,113.35,64.90880799]
[1644458831836,13.2332,113.43,113.35,64.90880799]
[1644458832135,14.48490004,113.45,113.35,64.90880799]
[1644458832336,40.74414686,113.44,113.37,58.34655447]
[1644458833737,53.97504686,113.44,113.37,58.34655447]
[1644458833937,4.408,113.43,113.37,58.34655447]
[1644458834140,36.47201315,113.42,113.37,58.34655447]
[1644458835159,4.408,113.43,113.37,58.34655447]
[1644458836141,47.33476824,113.43,113.37,58.34655447]
[1644458836645,47.33476824,113.43,113.38,12.46]
[1644458836842,42.92676824,113.43,113.38,25.6901]
[1644458838942,47.33476824,113.43,113.38,25.6901]
[1644458839246,47.33476824,113.43,113.39,48.52501285]
[1644458839944,47.33476824,113.43,113.38,25.6901]
[1644458840744,47.33476824,113.43,113.38,74.34122219]
[1644458841346,47.33476824,113.43,113.38,25.6901]
[1644458841749,60.56686824,113.43,113.38,12.46]
[1644458841947,56.15886824,113.43,113.38,12.46]
[1644458846049,44.251241,113.41,113.38,12.46]
[1644458847453,44.251241,113.41,113.35,49.6931]
[1644458848255,57.485441,113.41,113.35,23.9989]
[1644458848453,4.409,113.4,113.33,131.169]
[1644458848651,16.574,113.4,113.33,131.169]
[1644458848852,16.574,113.4,113.33,118.709]
[1644458849055,2.20638512,113.39,113.33,118.709]
[1644458849253,40.83620115,113.38,113.33,118.709]
[1644458849453,40.83620115,113.38,113.33,4.409]
[1644458849657,40.83620115,113.38,113.31,60.36909862]
[1644458850857,47.96091737,113.36,113.31,60.36909862]
[1644458851060,4.41,113.38,113.31,37.34909862]
[1644458851458,4.41,113.39,113.31,51.69820256]
[1644458851659,23.5503,113.42,113.31,51.94820256]
[1644458851660,24.80450004,113.42,113.31,51.94820256]
[1644458852058,45.77071269,113.41,113.31,51.94820256]
[1644458852857,42.28144912,113.39,113.31,65.18710256]
[1644458853057,42.28144912,113.39,113.33,46.81824874]
[1644458854763,42.28144912,113.39,113.35,35.04269971]
[1644458854960,13.236,113.4,113.35,35.04269971]
[1644458855961,49.82800558,113.4,113.35,35.04269971]
[1644458857161,49.82800558,113.4,113.34,13.2351]
[1644458857370,60.99400558,113.4,113.33,13.2365]
[1644458857566,13.2393,113.37,113.31,40.1441]
[1644458857766,24.4493,113.37,113.31,40.1441]
[1644458858167,36.94079957,113.36,113.31,86.3183688]
[1644458858366,36.94079957,113.36,113.31,63.0442688]
[1644458858767,36.94079957,113.36,113.31,76.2832688]
[1644458859467,36.94079957,113.36,113.31,71.8732688]
[1644458860168,13.2393,113.37,113.31,71.8732688]
[1644458861270,59.68185004,113.38,113.31,71.8732688]
[1644458861470,59.68185004,113.38,113.31,73.76828248]
[1644458861772,46.44415004,113.38,113.31,73.76828248]
[1644458863670,50.85415004,113.38,113.31,71.8732688]
[1644458863870,64.09155004,113.38,113.31,71.8732688]
[1644458867474,59.68155004,113.38,113.33,39.74407756]
[1644458868575,59.68155004,113.38,113.33,52.98087756]
[1644458870179,22.6052,113.39,113.33,65.44087756]
[1644458870180,13.2362,113.39,113.33,65.44087756]
[1644458870384,4.41,113.4,113.33,67.33589124]
[1644458870879,27.8217,113.42,113.33,71.74589124]
[1644458871079,50.31066321,113.41,113.33,71.74589124]
[1644458871579,37.07666321,113.41,113.33,71.99589124]
[1644458871981,27.8217,113.42,113.33,71.99589124]
[1644458872184,17.6417,113.43,113.34,6.0]
[1644458872380,4.409,113.44,113.35,16.869]
[1644458872581,4.409,113.44,113.37,13.2291]
[1644458872781,1.25420004,113.46,113.38,12.46]
[1644458872984,36.03842597,113.45,113.39,42.80153344]
[1644458873780,36.03842597,113.45,113.4,13.228]
[1644458873981,36.03842597,113.45,113.41,34.64726912]
[1644458873982,40.44642597,113.45,113.41,34.64726912]
[1644458875485,4.408,113.45,113.41,34.64726912]
[1644458875684,4.408,113.45,113.41,47.87506912]
[1644458875983,4.408,113.45,113.41,58.41306912]
[1644458876183,4.408,113.46,113.41,58.41306912]
[1644458876384,4.407,113.47,113.42,1.89501368]
[1644458876610,4.407,113.48,113.43,43.27840957]
[1644458876783,1.25420004,113.5,113.43,68.96190957]
[1644458876984,4.406,113.49,113.43,68.96190957]
[1644458877185,4.406,113.5,113.43,68.96190957]
[1644458877783,38.95489893,113.49,113.43,68.96190957]
[1644458879785,17.6303,113.5,113.43,68.96190957]
[1644458880785,51.99802503,113.5,113.43,68.96190957]
[1644458880986,47.59202503,113.5,113.43,68.96190957]
[1644458882186,60.81622503,113.5,113.43,68.96190957]
[1644458882786,60.81622503,113.5,113.43,12.46]
[1644458883689,41.03447658,113.48,113.43,46.74581623]
[1644458885689,41.03447658,113.48,113.43,59.97051623]
[1644458886895,13.2242,113.5,113.43,59.97051623]
[1644458887092,4.407,113.51,113.44,1.89501368]
[1644458887294,4.406,113.52,113.46,13.2208]
[1644458887492,22.917,113.53,113.46,25.6808]
[1644458887692,4.405,113.52,113.46,25.6808]
[1644458887896,43.17004181,113.51,113.46,71.75993121]
[1644458890292,36.1381,113.53,113.46,71.75993121]
[1644458891194,79.90550719,113.53,113.46,72.00993121]
[1644458891397,79.90550719,113.53,113.46,73.90494489]
[1644458891620,66.68440719,113.53,113.46,73.90494489]
[1644458892694,66.68440719,113.53,113.46,73.65494489]
[1644458893195,79.90560719,113.53,113.46,71.75993121]
[1644458893594,79.90560719,113.53,113.46,25.6808]
[1644458893795,4.405,113.52,113.46,25.6808]
[1644458894795,4.405,113.52,113.47,37.91030081]
[1644458894994,71.08940719,113.53,113.47,37.91030081]
[1644458895195,71.08940719,113.53,113.47,51.13000081]
[1644458895694,27.322,113.53,113.47,73.60100081]
[1644458895896,36.4714,113.55,113.47,75.49601449]
[1644458896295,13.2188,113.55,113.47,75.74601449]
[1644458896497,4.405,113.56,113.47,76.06082669]
[1644458896700,79.35273578,113.57,113.5,13.2159]
[1644458896900,74.94873578,113.57,113.51,12.46]
[1644458897099,61.73153578,113.57,113.52,37.82914516]
[1644458897300,37.73553578,113.57,113.52,37.82914516]
[1644458901007,4.402,113.58,113.52,51.04314516]
[1644458901206,0.22183458,113.59,113.52,63.50314516]
[1644458902005,38.17840702,113.59,113.52,63.50314516]
[1644458904111,0.22183458,113.59,113.52,63.50314516]
[1644458904314,0.22183458,113.59,113.52,73.50915884]
[1644458904511,0.22183458,113.59,113.54,0.30726964]
[1644458904814,0.22183458,113.59,113.55,27.56211368]
[1644458905012,0.22183458,113.59,113.56,44.69324053]
[1644458905210,0.22183458,113.59,113.57,18.20206758]
[1644458906112,0.22183458,113.59,113.57,31.41016758]
[1644458907437,0.22183458,113.59,113.57,18.20206758]
[1644458908638,0.22183458,113.59,113.55,17.6127]
[1644458909543,0.22183458,113.59,113.55,4.402]
[1644458910538,4.402,113.58,113.55,4.402]
[1644458911138,4.402,113.58,113.51,23.7556]
[1644458911338,48.51662666,113.57,113.5,12.46]
[1644458911539,48.51662666,113.57,113.5,25.6765]
[1644458912440,48.51662666,113.57,113.5,61.75723962]
[1644458913540,61.73242666,113.57,113.5,61.75723962]
[1644458913742,48.51662666,113.57,113.5,61.75723962]
[1644458914843,17.6165,113.58,113.5,61.75723962]
[1644458915041,0.22183458,113.59,113.51,1.89501368]
[1644458915243,0.22183458,113.59,113.53,13.2118]
[1644458915442,0.22183458,113.59,113.53,25.6718]
[1644458915842,44.38428992,113.59,113.54,39.08502512]
[1644458916244,0.22183458,113.59,113.54,52.29682512]
[1644458916644,0.22183458,113.59,113.55,12.46]
[1644458917143,0.22183458,113.59,113.56,43.69250065]
[1644458917347,0.22183458,113.59,113.57,13.2085]
[1644458918844,0.22183458,113.59,113.58,5.741829]
[1644458921448,0.22183458,113.59,113.56,13.2098]
[1644458921649,0.22183458,113.59,113.57,5.74206758]
[1644458923550,37.14404656,113.59,113.57,5.74206758]
[1644458924550,0.22183458,113.59,113.57,5.74206758]
[1644458925053,0.22183458,113.59,113.57,18.95076758]
[1644458925551,0.22183458,113.59,113.57,53.48719487]
[1644458925755,13.2085,113.63,113.57,53.48719487]
[1644458926752,65.67515959,113.64,113.57,53.48719487]
[1644458926956,4.402,113.64,113.57,55.6389483]
[1644458927152,5.65520004,113.66,113.58,12.46]